bitfinex/quotes_BTCUSD_20250718
["timestamp","ask_amount","ask_price","bid_price","bid_amount"]
[1752854982376,0.41243631,117940.0,117930.0,0.0356]
[1752854982587,0.75243631,117940.0,117930.0,0.0186]
[1752854982788,0.75243631,117940.0,117930.0,0.002]
[1752854983221,0.75243631,117940.0,117930.0,0.001]
[1752854983859,0.17907159,117930.0,117920.0,0.0312]
[1752854984066,0.26665187,117930.0,117920.0,0.0312]
[1752854984333,0.26970187,117930.0,117920.0,0.0312]
[1752854984894,0.25610241,117930.0,117920.0,0.22911754]
[1752854985095,0.33867007,117930.0,117920.0,0.71746881]
[1752854985303,0.34714967,117930.0,117920.0,0.70898878]
[1752854985468,0.34714967,117930.0,117920.0,0.71746874]
[1752854985676,0.34714967,117930.0,117920.0,0.71846881]
[1752854985873,0.34714967,117930.0,117920.0,0.6940285]
[1752854986076,0.3386705,117930.0,117920.0,0.23959779]
[1752854986280,0.3387105,117930.0,117920.0,0.23959779]
[1752854986497,0.3387105,117930.0,117920.0,0.24807789]
[1752854986790,0.14368,117930.0,117920.0,0.80353973]
[1752854987185,0.14348,117930.0,117920.0,0.80353973]
[1752854988621,0.00951903,117930.0,117920.0,0.80353973]
[1752854988886,0.14368,117930.0,117920.0,0.73642845]
[1752854990286,0.1521591,117930.0,117920.0,0.73642845]
[1752854990726,0.14368,117930.0,117920.0,0.73642845]
[1752854991137,0.16063812,117930.0,117920.0,0.73642845]
[1752854991807,0.16063805,117930.0,117920.0,0.73642845]
[1752854992039,0.15215895,117930.0,117920.0,0.73642845]
[1752854992246,0.16063805,117930.0,117920.0,0.73642845]
[1752854992448,0.14368,117930.0,117920.0,0.73642845]
[1752854992877,0.14368,117930.0,117920.0,0.82218807]
[1752854993290,0.14368,117930.0,117920.0,0.73642845]
[1752854997280,0.00104,117930.0,117920.0,0.73642845]
[1752854997707,0.00104,117930.0,117920.0,0.87846845]
[1752854998504,0.00104,117930.0,117920.0,0.40707731]
[1752854998716,0.00104,117930.0,117920.0,0.87846845]
[1752855000512,0.20651932,117930.0,117920.0,0.04979085]
[1752855000742,0.25280696,117930.0,117920.0,0.04774085]
[1752855000981,0.24432779,117930.0,117920.0,0.04774085]
[1752855001223,0.32135868,117930.0,117920.0,0.002]
[1752855001680,0.32035868,117930.0,117920.0,0.002]
[1752855001891,0.67545868,117930.0,117920.0,0.002]
[1752855002098,0.66035868,117930.0,117920.0,0.002]
[1752855002531,0.60852201,117930.0,117920.0,0.0172]
[1752855002754,0.7591614,117930.0,117920.0,0.0326]
[1752855002979,0.17811108,117930.0,117920.0,0.70715871]
[1752855003211,0.34586953,117930.0,117920.0,0.52355199]
[1752855003435,0.34586953,117930.0,117920.0,0.06912142]
[1752855003647,0.33738993,117930.0,117920.0,0.24620803]
[1752855003859,0.34586946,117930.0,117920.0,0.04820085]
[1752855004061,0.34586946,117930.0,117920.0,0.05568117]
[1752855004535,0.34586946,117930.0,117920.0,0.04820085]
[1752855004743,0.34586946,117930.0,117920.0,0.05668117]
[1752855004955,0.34586946,117930.0,117920.0,0.0566811]
[1752855005166,0.34586946,117930.0,117920.0,0.05768117]
[1752855005370,0.34586946,117930.0,117920.0,0.04920085]
[1752855006265,0.39083897,117930.0,117920.0,0.04920085]
[1752855007046,0.38235966,117930.0,117920.0,0.04920085]
[1752855007452,0.46429055,117930.0,117920.0,0.002]
[1752855007784,0.80429055,117930.0,117920.0,0.002]
[1752855007997,0.83526987,117930.0,117920.0,0.002]
[1752855008223,0.61592173,117930.0,117920.0,0.002]
[1752855008448,0.34755939,117930.0,117920.0,0.52049199]
[1752855008679,0.34755939,117930.0,117920.0,0.51949199]
[1752855008911,0.33060112,117930.0,117920.0,0.04810085]
[1752855009969,0.33060112,117930.0,117920.0,0.05658117]
[1752855010439,0.33060112,117930.0,117920.0,0.23466793]
[1752855010621,0.32863025,117930.0,117920.0,0.26010788]
[1752855010802,0.34558909,117930.0,117920.0,0.22618768]
[1752855011121,0.34755909,117930.0,117920.0,0.05658117]
[1752855011507,0.33908014,117930.0,117920.0,0.04810085]
[1752855011710,0.33060097,117930.0,117920.0,0.04810085]
[1752855012364,0.32505166,117930.0,117920.0,0.04810085]
[1752855012618,0.46163564,117930.0,117920.0,0.0315]
[1752855012825,0.46163564,117930.0,117900.0,0.1794586]
[1752855012826,0.18658218,117910.0,117900.0,0.20962028]
[1752855012991,0.15020054,117910.0,117900.0,0.22016154]
[1752855013195,0.32830203,117910.0,117900.0,0.25056154]
[1752855013378,0.15020046,117910.0,117900.0,0.25352154]
[1752855013626,0.14172,117910.0,117900.0,0.72491268]
[1752855014273,0.158681,117910.0,117900.0,0.70146862]
[1752855014503,0.14172,117910.0,117900.0,0.71843149]
[1752855014713,0.14172,117910.0,117900.0,0.72691275]
[1752855014933,0.026468,117920.0,117910.0,0.240804]
[1752855015143,4e-05,117930.0,117920.0,0.24078746]
[1752855015356,4e-05,117930.0,117920.0,1.20686016]
[1752855015560,4e-05,117930.0,117920.0,1.20982016]
[1752855016407,4e-05,117930.0,117920.0,1.21382016]
[1752855016616,4e-05,117930.0,117920.0,1.29957978]
[1752855017371,4e-05,117930.0,117920.0,1.30257978]
[1752855017984,0.00022947,117940.0,117930.0,0.54957092]
[1752855018196,0.00022947,117940.0,117930.0,1.28419234]
[1752855018829,0.00022947,117940.0,117930.0,1.28411234]
[1752855019262,0.00022947,117940.0,117930.0,0.8187212]
[1752855019472,0.00022947,117940.0,117930.0,1.29211234]
[1752855019731,0.00022947,117940.0,117930.0,1.37188614]
[1752855022039,0.00022947,117940.0,117930.0,1.29211234]
[1752855025926,0.00022947,117940.0,117930.0,0.93757149]
[1752855026286,0.00219947,117940.0,117930.0,0.70778121]
[1752855027001,0.00022947,117940.0,117930.0,0.70778121]
[1752855027202,0.00022947,117940.0,117930.0,0.72528206]
[1752855028085,0.00022947,117940.0,117930.0,0.27953019]
[1752855028288,0.00022947,117940.0,117930.0,0.72528206]
[1752855029208,0.00870778,117940.0,117930.0,0.24245182]
[1752855029428,0.01067778,117940.0,117930.0,0.72232206]
[1752855029762,0.18025553,117940.0,117930.0,0.72232213]
[1752855029955,0.00219947,117940.0,117930.0,0.72232206]
[1752855030165,0.18025546,117940.0,117930.0,0.71384296]
[1752855030365,0.18025546,117940.0,117930.0,0.72232206]
[1752855030525,0.00219947,117940.0,117930.0,0.72232206]
[1752855031156,0.00022947,117940.0,117930.0,0.72232206]
[1752855031333,0.00022947,117940.0,117930.0,0.89671196]
[1752855032843,0.00022947,117940.0,117930.0,0.81095234]
[1752855035960,0.00022947,117940.0,117930.0,1.15095234]
[1752855036181,0.001,117950.0,117940.0,1.52453667]
[1752855036391,0.00406,117980.0,117970.0,0.24170478]
[1752855036596,0.0010899,117980.0,117970.0,0.75787543]
[1752855037230,0.0010899,117980.0,117970.0,0.28648429]
[1752855037464,0.01170533,117980.0,117970.0,0.24366478]
[1752855037668,0.0032299,117980.0,117970.0,0.71505592]
[1752855038326,0.0052299,117980.0,117970.0,0.71505592]
[1752855038535,0.0030899,117980.0,117970.0,0.71817592]
[1752855039179,0.0010899,117980.0,117970.0,0.71817592]
[1752855039441,0.0010899,117980.0,117970.0,0.80393554]
[1752855039791,0.0010899,117980.0,117970.0,0.8293126]
[1752855040311,8.99e-05,117980.0,117970.0,0.8293126]
[1752855040555,8.99e-05,117980.0,117970.0,0.83905984]
[1752855040788,8.99e-05,117980.0,117970.0,0.97957984]
[1752855042339,0.0020899,117980.0,117970.0,0.97957984]
[1752855043669,0.01270526,117980.0,117970.0,0.41930908]
[1752855043881,0.0296562,117980.0,117970.0,0.89070022]
[1752855044151,0.21067275,117980.0,117970.0,0.22640562]
[1752855044381,0.19372181,117980.0,117970.0,0.22640562]
[1752855044607,0.19172181,117980.0,117970.0,0.22640562]
[1752855044832,0.19172181,117980.0,117970.0,0.24335829]
[1752855045062,0.01372541,117980.0,117970.0,0.25183451]
[1752855045254,0.19172131,117980.0,117970.0,0.25162918]
[1752855045505,0.2001971,117980.0,117970.0,0.23588213]
[1752855045722,0.20119753,117980.0,117970.0,0.04939456]
[1752855045936,0.44839216,117980.0,117970.0,0.001]
[1752855046152,0.78839216,117980.0,117970.0,0.001]
[1752855046371,1.2852393,117980.0,117970.0,0.001]
[1752855046583,0.82970536,117980.0,117970.0,0.001]
[1752855047423,0.01695539,117950.0,117940.0,0.21998881]
[1752855047607,0.16797334,117950.0,117940.0,0.24300804]
[1752855047853,0.17099334,117950.0,117940.0,0.24300804]
[1752855048076,0.16251539,117950.0,117940.0,0.24300804]
[1752855048285,0.17099327,117950.0,117940.0,0.24300804]
[1752855048499,0.14556,117950.0,117940.0,0.24300804]
[1752855048704,0.14556,117950.0,117940.0,0.26146804]
[1752855048705,0.16251539,117950.0,117940.0,0.26146804]
[1752855048881,0.14254,117950.0,117940.0,0.73485918]
[1752855049136,0.15101766,117950.0,117940.0,0.75055918]
[1752855049348,0.15949554,117950.0,117940.0,0.27916804]
[1752855049565,0.15949546,117950.0,117940.0,0.27916804]
[1752855049953,0.15101766,117950.0,117940.0,0.27916804]
[1752855050168,0.14254,117950.0,117940.0,0.36492766]
[1752855050379,0.1404,117950.0,117940.0,0.8363188]
[1752855050592,0.1404,117950.0,117940.0,0.81134337]
[1752855051149,0.14887752,117950.0,117940.0,0.81134337]
[1752855051358,0.15101759,117950.0,117940.0,0.81134337]
[1752855051463,0.15101752,117950.0,117940.0,0.81134337]
[1752855052186,0.16797306,117950.0,117940.0,0.72558375]
[1752855052393,0.34903487,117950.0,117940.0,0.22913763]
[1752855052600,0.34903487,117950.0,117940.0,0.22913749]
[1752855052822,0.34903487,117950.0,117940.0,0.22065889]
[1752855053019,0.34055721,117950.0,117940.0,0.04260277]
[1752855053463,0.41553614,117950.0,117940.0,0.003]
[1752855053667,0.36187948,117950.0,117940.0,0.003]
[1752855054706,0.33207948,117950.0,117940.0,0.18105656]
[1752855054921,0.33207948,117950.0,117940.0,0.1895353]
[1752855055138,0.34055714,117950.0,117940.0,0.17805656]
[1752855055375,0.34055714,117950.0,117940.0,0.1960139]
[1752855055376,0.02211525,117950.0,117940.0,0.1960139]
[1752855055598,0.34899437,117950.0,117940.0,0.30588777]
[1752855055817,0.34899473,117950.0,117940.0,0.22049257]
[1752855056034,0.34051714,117950.0,117940.0,0.00947888]
[1752855056246,0.34051714,117950.0,117940.0,0.18753544]
[1752855056477,0.33203934,117950.0,117940.0,0.001]
[1752855056705,0.28335389,117950.0,117940.0,0.001]
[1752855056915,0.42371389,117950.0,117940.0,0.001]
[1752855057086,0.38730034,117950.0,117940.0,0.001]
[1752855057735,0.47281062,117950.0,117940.0,0.001]
[1752855058462,0.81281062,117950.0,117940.0,0.001]
[1752855058939,0.81381062,117950.0,117940.0,0.001]
[1752855061249,0.78401062,117950.0,117940.0,0.17905656]
[1752855061467,0.69850034,117950.0,117940.0,0.21969206]
[1752855061694,0.69850034,117950.0,117940.0,0.21863523]
[1752855061954,0.69850034,117950.0,117940.0,0.21763523]
[1752855062174,0.38009866,117950.0,117940.0,0.23459206]
[1752855062387,0.53439434,117950.0,117940.0,0.23665221]
[1752855062608,0.05403427,117950.0,117940.0,0.23665221]
[1752855062817,0.1414,117950.0,117940.0,0.7225842]
[1752855063061,0.16683341,117950.0,117940.0,0.7225842]
[1752855063244,0.16683341,117950.0,117940.0,0.29488976]
[1752855063506,0.15197759,117950.0,117940.0,0.29488976]
[1752855063723,0.14987759,117950.0,117940.0,0.29488976]
[1752855063927,0.15835525,117950.0,117940.0,0.29488976]
[1752855064124,0.034911,117950.0,117940.0,0.29488976]
[1752855064369,0.16683298,117950.0,117940.0,0.25119306]
[1752855064599,0.1837888,117950.0,117940.0,0.25119306]
[1752855064808,0.0433888,117950.0,117940.0,0.25119306]
[1752855065024,0.16045525,117950.0,117940.0,0.25119306]
[1752855065240,0.16683313,117950.0,117940.0,0.25119306]
[1752855065399,0.35545261,117950.0,117940.0,0.25119306]
[1752855065635,0.18588917,117950.0,117940.0,0.25119306]
[1752855065999,0.34697495,117950.0,117940.0,0.04770085]
[1752855066192,0.02543758,117930.0,117920.0,0.19262722]
[1752855066424,0.3290509,117930.0,117920.0,0.20316775]
[1752855066633,0.34047029,117930.0,117920.0,0.1780868]
[1752855066846,0.34047029,117930.0,117910.0,0.22696315]
[1752855066847,0.02543966,117920.0,117910.0,0.22696315]
[1752855067059,0.02753959,117920.0,117910.0,0.22902315]
[1752855067267,0.20562635,117920.0,117910.0,0.22902315]
[1752855067472,0.01905956,117920.0,117910.0,0.22917262]
[1752855067706,0.00847903,117930.0,117920.0,0.20958746]
[1752855067939,0.21201135,117940.0,117930.0,0.20109168]
[1752855068125,0.1404,117940.0,117930.0,0.24353078]
[1752855068331,0.14887831,117940.0,117930.0,0.24353078]
[1752855068551,0.21198191,117950.0,117940.0,0.23267601]
[1752855068769,0.16045554,117950.0,117940.0,0.25169291]
[1752855068973,0.16893348,117950.0,117940.0,0.25169291]
[1752855069183,0.16045546,117950.0,117940.0,0.25169291]
[1752855069444,0.16893348,117950.0,117940.0,0.25169291]
[1752855069860,0.34697501,117950.0,117940.0,0.23473601]
[1752855070502,0.34049735,117950.0,117940.0,0.22625734]
[1752855070705,0.02405582,117950.0,117940.0,0.24321439]
[1752855070942,0.34343735,117950.0,117940.0,0.19259748]
[1752855071156,0.33295955,117950.0,117940.0,0.01454085]
[1752855071383,0.33395955,117950.0,117940.0,0.01454085]
[1752855072030,0.33395955,117950.0,117940.0,0.1851186]
[1752855072232,0.33395955,117950.0,117940.0,0.20207601]
[1752855072597,0.33295955,117950.0,117940.0,0.18753516]
[1752855072802,0.33295919,117950.0,117940.0,0.21201354]
[1752855072992,0.33295919,117950.0,117940.0,0.001]
[1752855073193,0.32448139,117950.0,117940.0,0.001]
[1752855073671,0.32448139,117950.0,117940.0,0.17905663]
[1752855073879,0.32448139,117950.0,117940.0,0.001]
[1752855074084,0.40999167,117950.0,117940.0,0.001]
[1752855076081,0.40051365,117950.0,117940.0,0.001]
[1752855077631,0.40051365,117950.0,117940.0,0.17905663]
[1752855077848,0.40051365,117950.0,117940.0,0.0169]
[1752855078495,0.40051365,117950.0,117940.0,0.001]
[1752855080729,0.43031365,117950.0,117940.0,0.001]
[1752855080967,0.41561365,117950.0,117940.0,0.001]
[1752855081171,0.26011365,117950.0,117940.0,0.17057775]
[1752855081392,0.41742983,117950.0,117940.0,0.20845663]
[1752855081606,0.41842983,117950.0,117940.0,0.0304]
[1752855081817,0.17805663,117940.0,117930.0,0.20901136]
[1752855082014,0.19711375,117940.0,117930.0,0.24333006]
[1752855082260,0.19711375,117940.0,117930.0,0.22637136]
[1752855082448,0.19711375,117940.0,117930.0,0.23485075]
[1752855082675,0.18863487,117940.0,117930.0,0.23485075]
[1752855082887,0.01905712,117940.0,117930.0,0.25180916]
[1752855083150,0.41632983,117950.0,117940.0,0.18653501]
[1752855083379,0.42890763,117950.0,117940.0,0.20965649]
[1752855083805,0.42690763,117950.0,117940.0,0.2181353]
[1752855084027,0.41842947,117950.0,117940.0,0.0316]
[1752855084466,0.27806947,117950.0,117940.0,0.0316]
[1752855084674,0.41942947,117950.0,117940.0,0.0316]
[1752855085103,0.17805663,117940.0,117930.0,0.04604085]
[1752855085316,0.1886353,117940.0,117930.0,0.21563298]
[1752855085533,0.01905712,117940.0,117930.0,0.24313078]
[1752855085754,0.19711297,117940.0,117930.0,0.24313078]
[1752855085959,0.20559171,117940.0,117930.0,0.24313078]
[1752855086185,0.20559228,117940.0,117930.0,0.23465183]
[1752855086556,0.17083572,117940.0,117930.0,0.24313085]
[1752855086779,0.33747347,117940.0,117930.0,0.24313085]
[1752855086941,0.33747354,117940.0,117930.0,0.05658045]
[1752855087163,0.19157516,117940.0,117930.0,0.04604085]
[1752855087409,0.33193516,117940.0,117930.0,0.21563298]
[1752855087609,0.19157473,117940.0,117930.0,0.25055024]
[1752855087803,0.33193473,117940.0,117930.0,0.25055024]
[1752855088105,0.34889235,117940.0,117930.0,0.23565197]
[1752855088314,0.19157537,117940.0,117930.0,0.22511258]
[1752855088554,0.15387852,117940.0,117930.0,0.25055052]
[1752855088761,0.35737094,117940.0,117930.0,0.23359211]
[1752855089135,0.17931431,117940.0,117930.0,0.25902998]
[1752855089362,0.1708355,117940.0,117930.0,0.25902948]
[1752855089594,0.01057831,117940.0,117930.0,0.81824024]
[1752855089837,0.14883824,117940.0,117930.0,0.81824024]
[1752855090048,0.14036,117940.0,117930.0,0.81824024]
[1752855090270,0.14883831,117940.0,117930.0,0.81824024]
[1752855090501,0.16579543,117940.0,117930.0,0.26108948]
[1752855090946,0.17427417,117940.0,117930.0,0.26108948]
[1752855091407,0.3573913,117940.0,117930.0,0.22511251]
[1752855091625,0.34043418,117940.0,117930.0,0.24207128]
[1752855091987,0.40008496,117940.0,117930.0,0.23359211]
[1752855092219,0.40008496,117940.0,117930.0,0.04704085]
[1752855092464,0.39160622,117940.0,117930.0,0.21057173]
[1752855092682,0.33195516,117940.0,117930.0,0.22753029]
[1752855092895,0.17085572,117940.0,117930.0,0.23799939]
[1752855093139,0.16783572,117940.0,117930.0,0.23799939]
[1752855093355,0.16883572,117940.0,117930.0,0.23799939]
[1752855093618,0.3384139,117940.0,117930.0,0.21256173]
[1752855093837,0.3329553,117940.0,117930.0,0.21905126]
[1752855094022,0.15489852,117940.0,117930.0,0.23601011]
[1752855094256,0.1688355,117940.0,117930.0,0.24647892]
[1752855094705,0.14132,117940.0,117930.0,0.82120053]
[1752855094917,0.14979838,117940.0,117930.0,0.82120053]
[1752855095967,0.1667555,117940.0,117930.0,0.82120053]
[1752855096143,0.33633325,117940.0,117930.0,0.73544105]
[1752855096375,0.32989487,117940.0,117930.0,0.22710244]
[1752855096580,0.33291487,117940.0,117930.0,0.23558154]
[1752855096791,0.34139361,117940.0,117930.0,0.22710244]
[1752855097000,0.34139361,117940.0,117930.0,0.22511258]
[1752855097216,0.34139361,117940.0,117930.0,0.23359211]
[1752855097644,0.34139361,117940.0,117930.0,0.25055096]
[1752855097865,0.34139361,117940.0,117930.0,0.24207157]
[1752855098032,0.32443649,117940.0,117930.0,0.22511258]
[1752855098247,0.32443649,117940.0,117930.0,0.24207157]
[1752855098468,0.33291501,117940.0,117930.0,0.25902963]
[1752855098720,0.33291501,117940.0,117930.0,0.26101963]
[1752855098939,0.16031683,117940.0,117930.0,0.26101963]
[1752855099357,0.34685199,117940.0,117930.0,0.25254053]
[1752855099571,0.16879543,117940.0,117930.0,0.26101963]
[1752855100239,0.14979824,117940.0,117930.0,0.26101963]
[1752855100444,0.14132,117940.0,117930.0,0.26404963]
[1752855100650,0.33633332,117940.0,117930.0,0.04903085]
[1752855100855,0.33837389,117940.0,117930.0,0.04704085]
[1752855101082,0.38370918,117940.0,117930.0,0.0325]
[1752855101321,0.41842565,117940.0,117930.0,0.001]
[1752855102375,0.41842565,117940.0,117930.0,0.0332]
[1752855102376,0.41942565,117940.0,117930.0,0.0332]
[1752855102826,0.41942565,117940.0,117930.0,0.21027166]
[1752855103035,0.41942565,117940.0,117930.0,0.0322]
[1752855103237,0.41942565,117940.0,117930.0,0.0406796]
[1752855103461,0.0980288,117940.0,117930.0,0.30756326]
[1752855103694,0.34577199,117940.0,117930.0,0.30756333]
[1752855104136,0.15923683,117940.0,117930.0,0.31604243]
[1752855104344,0.33933332,117940.0,117930.0,0.22922057]
[1752855104555,0.16975557,117940.0,117930.0,0.23769967]
[1752855104774,0.33933332,117940.0,117930.0,0.22922057]
[1752855104989,0.33933332,117940.0,117930.0,0.22922072]
[1752855105388,0.33387501,117940.0,117930.0,0.21875126]
[1752855105641,0.31691775,117940.0,117930.0,0.0406796]
[1752855105857,0.31691775,117940.0,117930.0,0.20179213]
[1752855106074,0.31691775,117940.0,117930.0,0.21027173]
[1752855106302,0.31691775,117940.0,117930.0,0.0322]
[1752855106487,0.36556594,117940.0,117930.0,0.0322]
[1752855106754,0.36556594,117940.0,117930.0,0.0406796]
[1752855106962,0.3338753,117940.0,117930.0,0.21875112]
[1752855107146,0.34235361,117940.0,117930.0,0.21027173]
[1752855107440,0.33387516,117940.0,117930.0,0.21027173]
[1752855107696,0.14734,117940.0,117930.0,0.22922072]
[1752855107926,0.33729296,117940.0,117930.0,0.23770003]
[1752855108167,0.16771521,117940.0,117930.0,0.2461787]
[1752855108376,0.16771514,117940.0,117930.0,0.2461787]
[1752855108817,0.02743514,117940.0,117930.0,0.2461787]
[1752855109038,0.002,117940.0,117930.0,0.2461787]
[1752855109253,0.002,117940.0,117930.0,0.76870368]
[1752855109460,0.002,117940.0,117930.0,0.80225197]
[1752855109461,0.001,117940.0,117930.0,0.80225197]
[1752855109664,0.001,117940.0,117930.0,1.02800225]
[1752855109880,0.001,117940.0,117930.0,1.36800225]
[1752855110362,1e-08,117940.0,117930.0,1.84039339]
[1752855110572,4e-05,117980.0,117970.0,0.20950478]
[1752855110792,4e-05,117980.0,117970.0,0.71318592]
[1752855111008,4e-05,117980.0,117970.0,0.71621592]
[1752855111880,0.00018969,117980.0,117970.0,0.71621592]
[1752855112518,0.00018969,117980.0,117970.0,0.24682478]
[1752855112740,0.00018969,117980.0,117970.0,0.71821592]
[1752855112980,0.00018969,117980.0,117970.0,0.81354005]
[1752855114071,0.00018969,117980.0,117970.0,0.81454005]
[1752855114580,0.00018969,117980.0,117970.0,0.83938742]
[1752855115414,0.00018969,117980.0,117970.0,0.9248977]
[1752855117262,0.00018969,117980.0,117970.0,0.7536278]
[1752855118644,0.00018969,117980.0,117970.0,0.83913808]
[1752855119447,0.00018969,117980.0,117970.0,1.17913808]
[1752855122136,0.00018969,117980.0,117970.0,0.8907178]
[1752855122355,0.00227969,117980.0,117970.0,0.38491478]
[1752855122572,0.00018969,117980.0,117970.0,0.85951592]
[1752855122822,0.00018969,117980.0,117970.0,1.00248896]
[1752855123811,0.00018969,117980.0,117970.0,1.01188003]
[1752855125777,0.00018969,117980.0,117970.0,1.34340381]
[1752855126014,0.00018969,117980.0,117970.0,1.35188003]
[1752855129465,0.00018969,117980.0,117970.0,1.37419067]
[1752855129685,0.00018969,117980.0,117970.0,1.37919067]
[1752855130436,0.00018969,117980.0,117970.0,1.32172791]
[1752855130649,0.00018969,117980.0,117970.0,1.32372791]
[1752855137057,0.00018969,117980.0,117970.0,1.33503187]
[1752855137564,0.00018969,117980.0,117970.0,1.33491187]
[1752855138860,0.00018969,117980.0,117970.0,1.81760697]
[1752855139064,0.00018969,117980.0,117970.0,1.90336659]
[1752855139601,0.00018969,117980.0,117970.0,1.42067149]
[1752855139834,4e-05,117990.0,117980.0,0.58018827]
[1752855140036,0.00053886,117990.0,117980.0,1.77627875]
[1752855140825,0.00053886,117990.0,117980.0,1.77727875]
[1752855141064,0.00053886,117990.0,117980.0,1.85705255]
[1752855141275,0.00053886,117990.0,117980.0,1.85905255]
[1752855145533,0.00053886,117990.0,117980.0,1.29658365]
[1752855145740,0.00262886,117990.0,117980.0,1.15341365]
[1752855145943,0.00557886,117990.0,117980.0,1.17510337]
[1752855146164,0.02252858,117990.0,117980.0,0.67216701]
[1752855146373,0.05232858,117990.0,117980.0,0.19794742]
[1752855146801,0.05232858,117990.0,117980.0,0.68064252]
[1752855146993,0.03537886,117990.0,117980.0,0.19494742]
[1752855147192,0.00557886,117990.0,117980.0,0.66653145]
[1752855147401,0.00557886,117990.0,117980.0,0.66753145]
[1752855147615,0.00557886,117990.0,117980.0,0.76783192]
[1752855147860,0.00557886,117990.0,117980.0,0.78333192]
[1752855148276,0.00557886,117990.0,117980.0,0.29624789]
[1752855148509,0.00557886,117990.0,117980.0,0.6820723]
[1752855148693,0.01405357,117990.0,117980.0,0.6820723]
[1752855149054,0.01405357,117990.0,117980.0,0.21048827]
[1752855149259,0.02915357,117990.0,117980.0,0.21048827]
[1752855149458,0.0291535,117990.0,117980.0,0.21048827]
[1752855149659,0.03762836,117990.0,117980.0,0.21048827]
[1752855150039,0.00557886,117990.0,117980.0,0.21048827]
[1752855150536,0.00557886,117990.0,117980.0,0.6820723]
[1752855151506,0.00557886,117990.0,117980.0,0.76783192]
[1752855151732,0.00557886,117990.0,117980.0,0.6820723]
[1752855152553,0.0140535,117990.0,117980.0,0.21048827]
[1752855152727,0.02992497,117990.0,117980.0,0.6820723]
[1752855153265,0.02145033,117990.0,117980.0,0.6820723]
[1752855154305,0.37754658,117990.0,117980.0,0.001]
[1752855154511,0.43235047,117990.0,117980.0,0.001]
[1752855154708,0.51786075,117990.0,117980.0,0.001]
[1752855155140,0.54331475,117990.0,117980.0,0.00847601]
[1752855155348,0.01695123,117980.0,117970.0,0.19496181]
[1752855155509,0.20746651,117980.0,117970.0,0.19496188]
[1752855155893,0.24574245,117980.0,117970.0,0.17800929]
[1752855156243,0.0169523,117970.0,117960.0,0.34088408]
[1752855156478,0.01050608,117970.0,117960.0,0.34423655]
[1752855156680,0.0220723,117970.0,117960.0,0.85590097]
[1752855156829,0.20008336,117970.0,117960.0,0.70058147]
[1752855157032,0.03054867,117970.0,117960.0,0.24353829]
[1752855157234,0.19160721,117970.0,117960.0,0.04008039]
[1752855157402,0.20008379,117970.0,117960.0,0.20356597]
[1752855157613,0.22140757,117970.0,117960.0,0.001]
[1752855157813,0.45411133,117970.0,117960.0,0.001]
[1752855158051,0.45411133,117970.0,117960.0,0.01047744]
[1752855158415,0.43824148,117970.0,117960.0,0.01895474]
[1752855158650,0.43824148,117970.0,117960.0,0.001]
[1752855159125,0.43824148,117970.0,117960.0,0.00947744]
[1752855159244,0.43824148,117970.0,117960.0,0.1875038]
[1752855159447,0.5041726,117970.0,117960.0,0.1875038]
[1752855160343,0.5041726,117970.0,117960.0,0.20445833]
[1752855160579,0.5041726,117970.0,117960.0,0.68451895]
[1752855160580,0.09910643,117970.0,117960.0,0.68451895]
[1752855160823,0.01359608,117970.0,117960.0,0.71761895]
[1752855161041,0.03054867,117970.0,117960.0,0.71958895]
[1752855161269,0.0220723,117970.0,117960.0,0.71761895]
[1752855161692,0.03054867,117970.0,117960.0,0.71761895]
[1752855161905,0.0220723,117970.0,117960.0,0.70101895]
[1752855162142,0.00512,117970.0,117960.0,0.84081895]
[1752855162379,0.01359608,117970.0,117960.0,0.85681895]
[1752855162567,0.0305486,117970.0,117960.0,0.38523492]
[1752855162782,0.07725318,117970.0,117960.0,0.35273492]
[1752855163684,0.03054853,117970.0,117960.0,0.35273492]
[1752855163907,0.03902497,117970.0,117960.0,0.35273492]
[1752855164132,0.03054853,117970.0,117960.0,0.35273492]
[1752855164346,0.03902497,117970.0,117960.0,0.35273492]
[1752855164566,0.04750155,117970.0,117960.0,0.35273492]
[1752855164792,0.06877702,117970.0,117960.0,0.35273492]
[1752855165032,0.05182428,117970.0,117960.0,0.35273492]
[1752855165267,0.01359615,117970.0,117960.0,0.35273492]
[1752855165499,0.03054881,117970.0,117960.0,0.35273492]
[1752855165700,0.04750204,117970.0,117960.0,0.35273492]
[1752855166009,0.03902539,117970.0,117960.0,0.35273492]
[1752855166423,0.08488264,117970.0,117960.0,0.35273492]
[1752855166723,0.07640591,117970.0,117960.0,0.35273492]
[1752855166922,0.02207237,117970.0,117960.0,0.35273492]
[1752855167126,0.03054881,117970.0,117960.0,0.35273492]
[1752855167764,0.03902539,117970.0,117960.0,0.35273492]
[1752855168085,0.03054881,117970.0,117960.0,0.35273492]
[1752855168293,0.21703652,117970.0,117960.0,0.35273492]
[1752855168504,0.26374251,117970.0,117960.0,0.1408]
[1752855168653,0.36209984,117970.0,117960.0,0.001]
[1752855168861,0.35362326,117970.0,117960.0,0.17054899]
[1752855169073,0.35362326,117970.0,117960.0,0.17902636]
[1752855169270,0.35362326,117970.0,117960.0,0.001]
[1752855169596,0.35362326,117970.0,117960.0,0.00947744]
[1752855169809,0.29844163,117970.0,117960.0,0.17802643]
[1752855170062,0.00847723,117960.0,117950.0,0.83441076]
[1752855170167,0.19701061,117960.0,117950.0,0.84288842]
[1752855170375,0.03055126,117960.0,117950.0,0.83441076]
[1752855170581,0.02207395,117960.0,117950.0,0.85928842]
[1752855171063,0.20857733,117960.0,117950.0,0.87488842]
[1752855171228,0.03055104,117960.0,117950.0,0.84288842]
[1752855171466,0.20857762,117960.0,117950.0,0.81745523]
[1752855171710,0.19499728,117950.0,117940.0,0.16957775]
[1752855171881,0.20011728,117950.0,117940.0,0.17805649]
[1752855172236,0.20859544,117950.0,117940.0,0.48311125]
[1752855172453,0.20859544,117950.0,117940.0,0.66964634]
[1752855172637,0.20011764,117950.0,117940.0,0.66116788]
[1752855172926,0.18316117,117950.0,117940.0,0.66964669]
[1752855173127,0.2085948,117950.0,117940.0,0.20364218]
[1752855173334,0.01359759,117950.0,117940.0,0.69623181]
[1752855173542,0.01359759,117950.0,117940.0,0.22872056]
[1752855173755,0.02207525,117950.0,117940.0,0.71183181]
[1752855174205,0.03055298,117950.0,117940.0,0.71183181]
[1752855175252,0.03055298,117950.0,117940.0,0.21176373]
[1752855175253,0.2085943,117950.0,117940.0,0.21176373]
[1752855175501,0.21707246,117950.0,117940.0,0.67079638]
[1752855175729,0.20859487,117950.0,117940.0,0.65383869]
[1752855175949,0.20859487,117950.0,117940.0,0.00114969]
[1752855175950,0.85294452,117950.0,117940.0,0.00114969]
[1752855176372,1.21841052,117950.0,117940.0,0.00114969]
[1752855176594,0.18661377,117890.0,117880.0,0.72292954]
[1752855176833,0.00203,117890.0,117880.0,0.76141926]
[1752855177045,0.01360198,117890.0,117880.0,0.78686799]
[1752855177290,0.20869815,117890.0,117880.0,0.25332481]